[Event "Titled Tuesday Blitz December 06 Early 2022"]
[White "Demin, Vladimir"]
[Black "Paiva, Henrique M A Albergaria"]
[WhiteFideId "4167457"]
[BlackFideId "1920995"]
[WhiteElo "2558"]
[BlackElo "1993"]
[Result "1-0"]
[Round "05"]
[TimeControl "180+1"]
[Date "2022.12.07"]
[WhiteClock "0:01:39"]
[BlackClock "0:01:21"]

1. e4 {[%clk 0:03:00]}  c5 {[%clk 0:02:56]} 2. Nf3 {[%clk 0:02:59]}  d6 {[%clk 0:02:56]} 3. d4 {[%clk 0:02:59]}  cxd4 {[%clk 0:02:55]} 4. Qxd4 {[%clk 0:03:00]}  Nf6 {[%clk 0:02:54]} 5. Bg5 {[%clk 0:02:59]}  e6 {[%clk 0:02:52]} 6. Nc3 {[%clk 0:02:53]}  a6 {[%clk 0:02:51]} 7. O-O-O {[%clk 0:02:51]}  Nc6 {[%clk 0:02:50]} 8. Qd2 {[%clk 0:02:51]}  h6 {[%clk 0:02:47]} 9. Bf4 {[%clk 0:02:49]}  e5 {[%clk 0:02:44]} 10. Be3 {[%clk 0:02:47]}  Be6 {[%clk 0:02:44]} 11. Kb1 {[%clk 0:02:46]}  Be7 {[%clk 0:02:44]} 12. h3 {[%clk 0:02:44]}  Rc8 {[%clk 0:02:42]} 13. Nh4 {[%clk 0:02:40]}  b5 {[%clk 0:02:35]} 14. Nf5 {[%clk 0:02:39]}  Bxf5 {[%clk 0:02:35]} 15. exf5 {[%clk 0:02:40]}  b4 {[%clk 0:02:29]} 16. Nd5 {[%clk 0:02:40]}  Nxd5 {[%clk 0:02:29]} 17. Qxd5 {[%clk 0:02:40]}  O-O {[%clk 0:02:29]} 18. Bxa6 {[%clk 0:02:39]}  Rc7 {[%clk 0:02:28]} 19. Bb6 {[%clk 0:02:38]}  Nd4 {[%clk 0:02:22]} 20. Rxd4 {[%clk 0:02:25]}  exd4 {[%clk 0:02:21]} 21. Qa5 {[%clk 0:02:23]}  Rc5 {[%clk 0:02:11]} 22. Bxd8 {[%clk 0:02:22]}  Rxa5 {[%clk 0:02:11]} 23. Bxa5 {[%clk 0:02:22]}  Ra8 {[%clk 0:02:12]} 24. Bxb4 {[%clk 0:02:21]}  Rxa6 {[%clk 0:02:12]} 25. Rd1 {[%clk 0:02:21]}  Bf6 {[%clk 0:02:11]} 26. a3 {[%clk 0:02:17]}  Rb6 {[%clk 0:02:08]} 27. Rd3 {[%clk 0:02:15]}  Rb5 {[%clk 0:02:08]} 28. g4 {[%clk 0:02:15]}  h5 {[%clk 0:02:08]} 29. f3 {[%clk 0:02:15]}  h4 {[%clk 0:02:03]} 30. Be1 {[%clk 0:02:13]}  Re5 {[%clk 0:02:00]} 31. Bf2 {[%clk 0:02:08]}  Re2 {[%clk 0:01:59]} 32. Bxd4 {[%clk 0:02:07]}  Bg5 {[%clk 0:01:54]} 33. a4 {[%clk 0:02:04]}  Rh2 {[%clk 0:01:54]} 34. f4 {[%clk 0:02:01]}  Bxf4 {[%clk 0:01:53]} 35. a5 {[%clk 0:02:01]}  Rh1+ {[%clk 0:01:53]} 36. Ka2 {[%clk 0:02:00]}  Rc1 {[%clk 0:01:51]} 37. c3 {[%clk 0:01:58]}  Re1 {[%clk 0:01:42]} 38. a6 {[%clk 0:01:55]}  Re8 {[%clk 0:01:43]} 39. a7 {[%clk 0:01:55]}  Ra8 {[%clk 0:01:42]} 40. b4 {[%clk 0:01:52]}  Be5 {[%clk 0:01:27]} 41. Be3 {[%clk 0:01:46]}  d5 {[%clk 0:01:27]} 42. b5 {[%clk 0:01:43]}  d4 {[%clk 0:01:27]} 43. Bxd4 {[%clk 0:01:39]}  Bxd4 {[%clk 0:01:27]} 44. Rxd4 {[%clk 0:01:39]}  Rxa7+ {[%clk 0:01:28]} 45. Kb3 {[%clk 0:01:39]}  Ra1 {[%clk 0:01:25]} 46. Rb4 {[%clk 0:01:37]}  Rh1 {[%clk 0:01:24]} 47. b6 {[%clk 0:01:38]}  Rxh3 {[%clk 0:01:22]} 48. b7 {[%clk 0:01:38]}  Rg3 {[%clk 0:01:20]} 49. b8=Q+ {[%clk 0:01:39]}  Kh7 {[%clk 0:01:21]} 1-0


[Site "https://www.chess.com"]

[Event "Titled Tuesday Blitz December 06 Early 2022"]
[White "Durarbayli, Vasif"]
[Black "Paravyan, David"]
[WhiteFideId "13402935"]
[BlackFideId "4194985"]
[WhiteElo "2576"]
[BlackElo "2551"]
[Result "0-1"]
[Round "05"]
[TimeControl "180+1"]
[Date "2022.12.06"]
[WhiteClock "0:00:06"]
[BlackClock "0:00:11"]

1. e4 {[%clk 0:03:00]}  e5 {[%clk 0:02:59]} 2. Nf3 {[%clk 0:03:01]}  Nf6 {[%clk 0:03:00]} 3. Nxe5 {[%clk 0:03:01]}  d6 {[%clk 0:03:00]} 4. Nf3 {[%clk 0:03:01]}  Nxe4 {[%clk 0:03:00]} 5. d4 {[%clk 0:03:02]}  d5 {[%clk 0:03:00]} 6. Bd3 {[%clk 0:03:03]}  Bd6 {[%clk 0:03:01]} 7. O-O {[%clk 0:03:03]}  O-O {[%clk 0:03:01]} 8. Re1 {[%clk 0:02:57]}  Bf5 {[%clk 0:03:01]} 9. Nc3 {[%clk 0:02:57]}  Nxc3 {[%clk 0:03:01]} 10. bxc3 {[%clk 0:02:57]}  Bxd3 {[%clk 0:03:01]} 11. Qxd3 {[%clk 0:02:57]}  h6 {[%clk 0:03:02]} 12. c4 {[%clk 0:02:52]}  dxc4 {[%clk 0:03:01]} 13. Qxc4 {[%clk 0:02:52]}  Nd7 {[%clk 0:02:58]} 14. Rb1 {[%clk 0:02:43]}  b6 {[%clk 0:02:49]} 15. Qd3 {[%clk 0:02:23]}  Nf6 {[%clk 0:02:46]} 16. c4 {[%clk 0:02:23]}  Qd7 {[%clk 0:02:42]} 17. Be3 {[%clk 0:02:15]}  Rfe8 {[%clk 0:02:39]} 18. h3 {[%clk 0:02:12]}  Rad8 {[%clk 0:02:33]} 19. Rbd1 {[%clk 0:01:57]}  a6 {[%clk 0:02:17]} 20. Qc2 {[%clk 0:01:32]}  Qc8 {[%clk 0:01:17]} 21. d5 {[%clk 0:01:22]}  Bb4 {[%clk 0:00:54]} 22. Rf1 {[%clk 0:01:13]}  Bc5 {[%clk 0:00:40]} 23. Bxc5 {[%clk 0:01:01]}  bxc5 {[%clk 0:00:41]} 24. Rfe1 {[%clk 0:01:02]}  Rxe1+ {[%clk 0:00:39]} 25. Nxe1 {[%clk 0:00:40]}  c6 {[%clk 0:00:25]} 26. dxc6 {[%clk 0:00:25]}  Rxd1 {[%clk 0:00:24]} 27. Qxd1 {[%clk 0:00:26]}  Qxc6 {[%clk 0:00:24]} 28. Qd8+ {[%clk 0:00:23]}  Kh7 {[%clk 0:00:23]} 29. Nd3 {[%clk 0:00:24]}  Qe4 {[%clk 0:00:19]} 30. Nxc5 {[%clk 0:00:19]}  Qe1+ {[%clk 0:00:19]} 31. Kh2 {[%clk 0:00:19]}  Qe5+ {[%clk 0:00:20]} 32. Kg1 {[%clk 0:00:16]}  Qxc5 {[%clk 0:00:20]} 33. Qd3+ {[%clk 0:00:17]}  g6 {[%clk 0:00:20]} 34. Qc3 {[%clk 0:00:15]}  Kg7 {[%clk 0:00:20]} 35. g4 {[%clk 0:00:14]}  a5 {[%clk 0:00:19]} 36. h4 {[%clk 0:00:14]}  g5 {[%clk 0:00:20]} 37. h5 {[%clk 0:00:13]}  Qb4 {[%clk 0:00:17]} 38. Qd4 {[%clk 0:00:13]}  Qe1+ {[%clk 0:00:17]} 39. Kh2 {[%clk 0:00:10]}  Qe4 {[%clk 0:00:17]} 40. Qc3 {[%clk 0:00:06]}  Qf4+ {[%clk 0:00:17]} 41. Kh1 {[%clk 0:00:06]}  Qxg4 {[%clk 0:00:16]} 42. c5 {[%clk 0:00:06]}  Qxh5+ {[%clk 0:00:16]} 43. Kg1 {[%clk 0:00:07]}  Qg4+ {[%clk 0:00:17]} 44. Kf1 {[%clk 0:00:07]}  Qd1+ {[%clk 0:00:16]} 45. Kg2 {[%clk 0:00:07]}  Qd5+ {[%clk 0:00:17]} 46. Kg3 {[%clk 0:00:07]}  Kg6 {[%clk 0:00:16]} 47. f3 {[%clk 0:00:06]}  Qc6 {[%clk 0:00:11]} 48. Qd4 {[%clk 0:00:05]}  Nd7 {[%clk 0:00:11]} 49. Qd3+ {[%clk 0:00:05]}  Kg7 {[%clk 0:00:11]} 50. Qd4+ {[%clk 0:00:06]}  Kg8 {[%clk 0:00:11]} 0-1


[Site "https://www.chess.com"]

[Event "Titled Tuesday Blitz December 06 Early 2022"]
[White "Eynullayev, Atilla"]
[Black "Ahn, Hongjin"]
[WhiteFideId "13413570"]
[BlackFideId "13201492"]
[WhiteElo "2181"]
[BlackElo "2182"]
[Result "0-1"]
[Round "05"]
[TimeControl "180+1"]
[Date "2022.12.07"]
[WhiteClock "0:01:11"]
[BlackClock "0:00:09"]

1. d4 {[%clk 0:03:00]}  c5 {[%clk 0:02:59]} 2. d5 {[%clk 0:03:01]}  d6 {[%clk 0:02:59]} 3. e4 {[%clk 0:03:00]}  g6 {[%clk 0:02:58]} 4. Bb5+ {[%clk 0:02:58]}  Bd7 {[%clk 0:02:58]} 5. a4 {[%clk 0:02:58]}  a6 {[%clk 0:02:59]} 6. Be2 {[%clk 0:02:58]}  Bg7 {[%clk 0:02:59]} 7. Nf3 {[%clk 0:02:55]}  Nf6 {[%clk 0:02:59]} 8. Nfd2 {[%clk 0:02:53]}  O-O {[%clk 0:02:59]} 9. O-O {[%clk 0:02:54]}  Be8 {[%clk 0:02:59]} 10. Nc3 {[%clk 0:02:53]}  Nbd7 {[%clk 0:02:58]} 11. Re1 {[%clk 0:02:49]}  Rb8 {[%clk 0:02:57]} 12. a5 {[%clk 0:02:48]}  Qc8 {[%clk 0:02:39]} 13. Nc4 {[%clk 0:02:41]}  b5 {[%clk 0:02:34]} 14. axb6 {[%clk 0:02:39]}  Nxb6 {[%clk 0:02:34]} 15. Na5 {[%clk 0:02:39]}  h5 {[%clk 0:02:18]} 16. Qd3 {[%clk 0:02:33]}  Ra8 {[%clk 0:02:14]} 17. Bg5 {[%clk 0:02:29]}  Ra7 {[%clk 0:02:08]} 18. b3 {[%clk 0:02:22]}  Nh7 {[%clk 0:02:02]} 19. Bd2 {[%clk 0:02:18]}  f5 {[%clk 0:01:43]} 20. Bf3 {[%clk 0:02:00]}  f4 {[%clk 0:01:35]} 21. e5 {[%clk 0:01:54]}  dxe5 {[%clk 0:01:14]} 22. Nc6 {[%clk 0:01:49]}  Rc7 {[%clk 0:00:42]} 23. Qxa6 {[%clk 0:01:45]}  Qxa6 {[%clk 0:00:26]} 24. Rxa6 {[%clk 0:01:46]}  Nc8 {[%clk 0:00:26]} 25. Ne4 {[%clk 0:01:39]}  Bxc6 {[%clk 0:00:13]} 26. dxc6 {[%clk 0:01:38]}  Rd8 {[%clk 0:00:08]} 27. Nxc5 {[%clk 0:01:29]}  Rxd2 {[%clk 0:00:07]} 28. Ne6 {[%clk 0:01:29]}  Rxc6 {[%clk 0:00:04]} 29. Rxc6 {[%clk 0:01:29]}  Nd6 {[%clk 0:00:04]} 30. c4 {[%clk 0:01:28]}  g5 {[%clk 0:00:04]} 31. Bd5 {[%clk 0:01:27]}  Nf6 {[%clk 0:00:03]} 32. Nxg5+ {[%clk 0:01:25]}  Nxd5 {[%clk 0:00:04]} 33. cxd5 {[%clk 0:01:26]}  Rxd5 {[%clk 0:00:04]} 34. h3 {[%clk 0:01:25]}  Bf6 {[%clk 0:00:04]} 35. Ne4 {[%clk 0:01:24]}  Nxe4 {[%clk 0:00:05]} 36. Re3 {[%clk 0:01:25]}  Rd1+ {[%clk 0:00:05]} 37. Kh2 {[%clk 0:01:25]}  fxe3 {[%clk 0:00:06]} 38. fxe3 {[%clk 0:01:26]}  Bg5 {[%clk 0:00:06]} 39. Rc8+ {[%clk 0:01:23]}  Kf7 {[%clk 0:00:07]} 40. g3 {[%clk 0:01:22]}  Bxe3 {[%clk 0:00:07]} 41. Kg2 {[%clk 0:01:22]}  Bh6 {[%clk 0:00:06]} 42. Kf3 {[%clk 0:01:23]}  Nf6 {[%clk 0:00:07]} 43. b4 {[%clk 0:01:23]}  e4+ {[%clk 0:00:08]} 44. Ke2 {[%clk 0:01:23]}  Rd2+ {[%clk 0:00:08]} 45. Ke1 {[%clk 0:01:23]}  e3 {[%clk 0:00:08]} 46. b5 {[%clk 0:01:24]}  h4 {[%clk 0:00:09]} 47. gxh4 {[%clk 0:01:23]}  Bf4 {[%clk 0:00:09]} 48. Kf1 {[%clk 0:01:20]}  Bg3 {[%clk 0:00:09]} 49. b6 {[%clk 0:01:11]}  e2+ {[%clk 0:00:09]} 0-1


[Site "https://www.chess.com"]

[Event "Titled Tuesday Blitz December 06 Early 2022"]
[White "Farmani Anosheh, Armin"]
[Black "Sava, Christiansen-Danut-Eugen"]
[WhiteFideId "24613240"]
[BlackFideId "1210114"]
[WhiteElo "2289"]
[BlackElo "1904"]
[Result "1-0"]
[Round "05"]
[TimeControl "180+1"]
[Date "2022.12.07"]
[WhiteClock "0:00:42"]
[BlackClock "0:00:53"]

1. e4 {[%clk 0:03:00]}  e6 {[%clk 0:02:58]} 2. d4 {[%clk 0:03:00]}  d5 {[%clk 0:02:59]} 3. Nd2 {[%clk 0:03:01]}  c5 {[%clk 0:02:58]} 4. Ngf3 {[%clk 0:03:01]}  Nc6 {[%clk 0:02:56]} 5. exd5 {[%clk 0:03:00]}  exd5 {[%clk 0:02:56]} 6. Bb5 {[%clk 0:03:01]}  a6 {[%clk 0:02:52]} 7. Bxc6+ {[%clk 0:02:59]}  bxc6 {[%clk 0:02:53]} 8. O-O {[%clk 0:02:59]}  Bd6 {[%clk 0:02:49]} 9. dxc5 {[%clk 0:02:58]}  Bxc5 {[%clk 0:02:50]} 10. c4 {[%clk 0:02:57]}  Ne7 {[%clk 0:02:48]} 11. cxd5 {[%clk 0:02:56]}  cxd5 {[%clk 0:02:49]} 12. Nb3 {[%clk 0:02:55]}  Bb6 {[%clk 0:02:48]} 13. h3 {[%clk 0:02:50]}  O-O {[%clk 0:02:48]} 14. Re1 {[%clk 0:02:45]}  Bf5 {[%clk 0:02:46]} 15. Be3 {[%clk 0:02:45]}  Bxe3 {[%clk 0:02:46]} 16. Rxe3 {[%clk 0:02:45]}  Be4 {[%clk 0:02:46]} 17. Nfd4 {[%clk 0:02:45]}  Nf5 {[%clk 0:02:44]} 18. Nxf5 {[%clk 0:02:43]}  Bxf5 {[%clk 0:02:45]} 19. Nd4 {[%clk 0:02:44]}  Bg6 {[%clk 0:02:44]} 20. Qd2 {[%clk 0:02:40]}  Qb6 {[%clk 0:02:42]} 21. Rae1 {[%clk 0:02:38]}  h5 {[%clk 0:02:40]} 22. b3 {[%clk 0:02:35]}  Be4 {[%clk 0:02:28]} 23. f3 {[%clk 0:02:34]}  Bg6 {[%clk 0:02:27]} 24. h4 {[%clk 0:02:33]}  Rac8 {[%clk 0:02:25]} 25. Kh2 {[%clk 0:02:32]}  Qd6+ {[%clk 0:02:21]} 26. g3 {[%clk 0:02:26]}  Qb6 {[%clk 0:02:03]} 27. Re5 {[%clk 0:02:21]}  Rfd8 {[%clk 0:01:59]} 28. R1e2 {[%clk 0:02:20]}  a5 {[%clk 0:01:56]} 29. Rg5 {[%clk 0:02:16]}  Qb4 {[%clk 0:01:55]} 30. Qf4 {[%clk 0:02:12]}  a4 {[%clk 0:01:51]} 31. g4 {[%clk 0:02:09]}  hxg4 {[%clk 0:01:47]} 32. h5 {[%clk 0:02:07]}  Bd3 {[%clk 0:01:39]} 33. Rd2 {[%clk 0:00:52]}  Rc2 {[%clk 0:01:05]} 34. Rxc2 {[%clk 0:00:52]}  Bxc2 {[%clk 0:01:05]} 35. Rxg7+ {[%clk 0:00:52]}  Kxg7 {[%clk 0:01:03]} 36. Ne6+ {[%clk 0:00:52]}  fxe6 {[%clk 0:01:01]} 37. Qxb4 {[%clk 0:00:53]}  axb3 {[%clk 0:00:59]} 38. Qe7+ {[%clk 0:00:45]}  Kh6 {[%clk 0:00:59]} 39. Qxd8 {[%clk 0:00:46]}  bxa2 {[%clk 0:00:59]} 40. Qf6+ {[%clk 0:00:42]}  Kxh5 {[%clk 0:00:58]} 41. f4 {[%clk 0:00:42]}  Bf5 {[%clk 0:00:53]} 42. Qg5# {[%clk 0:00:42]} 1-0


[Site "https://www.chess.com"]

[Event "Titled Tuesday Blitz December 06 Early 2022"]
[White "Galchenko, Matvey"]
[Black "Barria Zuniga, Daniel"]
[WhiteFideId "24175480"]
[BlackFideId "3400816"]
[WhiteElo "2404"]
[BlackElo "2414"]
[Result "1-0"]
[Round "05"]
[TimeControl "180+1"]
[Date "2022.12.06"]
[WhiteClock "0:00:51"]
[BlackClock "0:00:15"]

1. f4 {[%clk 0:03:00]}  g6 {[%clk 0:02:55]} 2. Nf3 {[%clk 0:03:00]}  Bg7 {[%clk 0:02:56]} 3. g3 {[%clk 0:03:01]}  c5 {[%clk 0:02:55]} 4. Bg2 {[%clk 0:03:01]}  Nf6 {[%clk 0:02:55]} 5. O-O {[%clk 0:03:01]}  O-O {[%clk 0:02:55]} 6. d3 {[%clk 0:03:02]}  Nc6 {[%clk 0:02:55]} 7. e4 {[%clk 0:03:01]}  d6 {[%clk 0:02:54]} 8. Nc3 {[%clk 0:03:01]}  Rb8 {[%clk 0:02:53]} 9. a4 {[%clk 0:03:00]}  a6 {[%clk 0:02:53]} 10. h3 {[%clk 0:03:00]}  b5 {[%clk 0:02:53]} 11. axb5 {[%clk 0:03:01]}  axb5 {[%clk 0:02:53]} 12. g4 {[%clk 0:03:02]}  b4 {[%clk 0:02:54]} 13. Ne2 {[%clk 0:03:03]}  Nd7 {[%clk 0:02:54]} 14. Ng3 {[%clk 0:02:58]}  Bb7 {[%clk 0:02:52]} 15. h4 {[%clk 0:02:54]}  Ra8 {[%clk 0:02:51]} 16. Rb1 {[%clk 0:02:54]}  Ra2 {[%clk 0:02:48]} 17. h5 {[%clk 0:02:51]}  e6 {[%clk 0:02:47]} 18. g5 {[%clk 0:02:49]}  Nd4 {[%clk 0:02:36]} 19. Bh3 {[%clk 0:02:45]}  Nxf3+ {[%clk 0:02:28]} 20. Qxf3 {[%clk 0:02:46]}  Bd4+ {[%clk 0:02:26]} 21. Kh2 {[%clk 0:02:33]}  f5 {[%clk 0:02:19]} 22. gxf6 {[%clk 0:02:25]}  Rxf6 {[%clk 0:02:08]} 23. Qd1 {[%clk 0:02:15]}  Qe7 {[%clk 0:01:37]} 24. Ne2 {[%clk 0:01:25]}  Rf7 {[%clk 0:01:03]} 25. c3 {[%clk 0:01:15]}  Bg7 {[%clk 0:00:58]} 26. Qb3 {[%clk 0:01:13]}  Ra8 {[%clk 0:00:48]} 27. Qxe6 {[%clk 0:01:05]}  Qh4 {[%clk 0:00:37]} 28. hxg6 {[%clk 0:01:01]}  hxg6 {[%clk 0:00:38]} 29. Qxg6 {[%clk 0:01:00]}  Nf8 {[%clk 0:00:33]} 30. Qg3 {[%clk 0:01:00]}  Qh5 {[%clk 0:00:32]} 31. Qg4 {[%clk 0:00:59]}  Qxg4 {[%clk 0:00:26]} 32. Bxg4 {[%clk 0:01:00]}  bxc3 {[%clk 0:00:26]} 33. bxc3 {[%clk 0:00:58]}  Ra2 {[%clk 0:00:25]} 34. Kg3 {[%clk 0:00:55]}  Ba6 {[%clk 0:00:22]} 35. c4 {[%clk 0:00:54]}  Bc8 {[%clk 0:00:15]} 36. Bxc8 {[%clk 0:00:51]} 1-0


[Site "https://www.chess.com"]

[Event "Titled Tuesday Blitz December 06 Early 2022"]
[White "Garv Gaur"]
[Black "Tarlabasi, Emirhan"]
[WhiteFideId "45030839"]
[BlackFideId "6350275"]
[WhiteElo "2056"]
[BlackElo "2200"]
[Result "0-1"]
[Round "05"]
[TimeControl "180+1"]
[Date "2022.12.07"]
[WhiteClock "0:00:09"]
[BlackClock "0:00:21"]

1. c4 {[%clk 0:03:00]}  c5 {[%clk 0:03:00]} 2. Nf3 {[%clk 0:02:59]}  Nf6 {[%clk 0:03:01]} 3. g3 {[%clk 0:02:59]}  b6 {[%clk 0:03:01]} 4. Bg2 {[%clk 0:02:59]}  Bb7 {[%clk 0:03:02]} 5. O-O {[%clk 0:02:52]}  e6 {[%clk 0:03:02]} 6. b3 {[%clk 0:02:50]}  Be7 {[%clk 0:03:02]} 7. d3 {[%clk 0:02:48]}  O-O {[%clk 0:02:57]} 8. Bb2 {[%clk 0:02:48]}  d6 {[%clk 0:02:58]} 9. Nbd2 {[%clk 0:02:48]}  Nbd7 {[%clk 0:02:59]} 10. Qc2 {[%clk 0:02:48]}  a6 {[%clk 0:02:59]} 11. a3 {[%clk 0:02:48]}  Qc7 {[%clk 0:02:59]} 12. Rac1 {[%clk 0:02:48]}  Rac8 {[%clk 0:02:58]} 13. Rfd1 {[%clk 0:02:48]}  Qb8 {[%clk 0:02:58]} 14. Qb1 {[%clk 0:02:46]}  Rfd8 {[%clk 0:02:58]} 15. Qa1 {[%clk 0:02:46]}  Qa8 {[%clk 0:02:58]} 16. Nf1 {[%clk 0:02:41]}  b5 {[%clk 0:02:58]} 17. e4 {[%clk 0:02:36]}  h6 {[%clk 0:02:57]} 18. Ne3 {[%clk 0:02:35]}  Bc6 {[%clk 0:02:48]} 19. h3 {[%clk 0:02:27]}  Qb7 {[%clk 0:02:48]} 20. Rb1 {[%clk 0:02:24]}  Bf8 {[%clk 0:02:39]} 21. Bc3 {[%clk 0:02:24]}  Re8 {[%clk 0:02:36]} 22. Nd2 {[%clk 0:02:11]}  d5 {[%clk 0:02:33]} 23. e5 {[%clk 0:01:46]}  d4 {[%clk 0:02:24]} 24. Bxc6 {[%clk 0:01:44]}  Qxc6 {[%clk 0:02:25]} 25. exf6 {[%clk 0:01:44]}  dxc3 {[%clk 0:02:07]} 26. Qxc3 {[%clk 0:01:45]}  Nxf6 {[%clk 0:02:06]} 27. Re1 {[%clk 0:01:18]}  Red8 {[%clk 0:02:06]} 28. Rbd1 {[%clk 0:01:18]}  Be7 {[%clk 0:02:03]} 29. Nc2 {[%clk 0:01:13]}  Rd7 {[%clk 0:01:57]} 30. d4 {[%clk 0:00:46]}  Rcd8 {[%clk 0:01:56]} 31. dxc5 {[%clk 0:00:43]}  Bxc5 {[%clk 0:01:55]} 32. b4 {[%clk 0:00:43]}  Rd3 {[%clk 0:01:36]} 33. Qxd3 {[%clk 0:00:19]}  Bxf2+ {[%clk 0:01:27]} 34. Kxf2 {[%clk 0:00:20]}  Rxd3 {[%clk 0:01:28]} 35. c5 {[%clk 0:00:19]}  Rxd2+ {[%clk 0:01:09]} 36. Rxd2 {[%clk 0:00:18]}  Ne4+ {[%clk 0:01:10]} 37. Rxe4 {[%clk 0:00:18]}  Qxe4 {[%clk 0:01:11]} 38. Ne3 {[%clk 0:00:18]}  f5 {[%clk 0:01:04]} 39. Rc2 {[%clk 0:00:16]}  f4 {[%clk 0:01:03]} 40. gxf4 {[%clk 0:00:16]}  Qxf4+ {[%clk 0:01:04]} 41. Ke2 {[%clk 0:00:17]}  Qh2+ {[%clk 0:01:01]} 42. Kd3 {[%clk 0:00:17]}  Qc7 {[%clk 0:00:54]} 43. c6 {[%clk 0:00:18]}  g5 {[%clk 0:00:51]} 44. Ke4 {[%clk 0:00:18]}  Kf7 {[%clk 0:00:49]} 45. Kd4 {[%clk 0:00:17]}  Kg6 {[%clk 0:00:47]} 46. Ng4 {[%clk 0:00:12]}  Qf4+ {[%clk 0:00:43]} 47. Kd3 {[%clk 0:00:11]}  Qf3+ {[%clk 0:00:41]} 48. Ne3 {[%clk 0:00:10]}  Qf8 {[%clk 0:00:30]} 49. c7 {[%clk 0:00:10]}  Qc8 {[%clk 0:00:30]} 50. Ke4 {[%clk 0:00:10]}  h5 {[%clk 0:00:30]} 51. Ke5 {[%clk 0:00:10]}  g4 {[%clk 0:00:31]} 52. hxg4 {[%clk 0:00:10]}  hxg4 {[%clk 0:00:32]} 53. Nxg4 {[%clk 0:00:10]}  Kf7 {[%clk 0:00:26]} 54. Ne3 {[%clk 0:00:09]}  Ke7 {[%clk 0:00:25]} 55. Rc5 {[%clk 0:00:09]}  Kd7 {[%clk 0:00:24]} 56. Nc2 {[%clk 0:00:09]}  Qh8+ {[%clk 0:00:24]} 57. Ke4 {[%clk 0:00:05]}  Qh4+ {[%clk 0:00:23]} 58. Kd3 {[%clk 0:00:05]}  Qh7+ {[%clk 0:00:21]} 59. Kc3 {[%clk 0:00:04]}  Kc8 {[%clk 0:00:21]} 60. Nd4 {[%clk 0:00:04]}  Qh3+ {[%clk 0:00:18]} 61. Kb2 {[%clk 0:00:05]}  Qg2+ {[%clk 0:00:18]} 62. Nc2 {[%clk 0:00:05]}  e5 {[%clk 0:00:17]} 63. Rxe5 {[%clk 0:00:03]}  Kxc7 {[%clk 0:00:17]} 64. Rc5+ {[%clk 0:00:03]}  Kb6 {[%clk 0:00:17]} 65. Rc3 {[%clk 0:00:03]}  Qg7 {[%clk 0:00:18]} 66. Kb3 {[%clk 0:00:04]}  Qf6 {[%clk 0:00:18]} 67. Rd3 {[%clk 0:00:03]}  a5 {[%clk 0:00:18]} 68. Nd4 {[%clk 0:00:03]}  Qf7+ {[%clk 0:00:17]} 69. Kb2 {[%clk 0:00:03]}  Qc4 {[%clk 0:00:17]} 70. Rd2 {[%clk 0:00:03]}  axb4 {[%clk 0:00:18]} 71. axb4 {[%clk 0:00:03]}  Qxb4+ {[%clk 0:00:18]} 72. Nb3 {[%clk 0:00:04]}  Qc4 {[%clk 0:00:18]} 73. Rc2 {[%clk 0:00:04]}  Qd5 {[%clk 0:00:17]} 74. Rd2 {[%clk 0:00:05]}  Qe5+ {[%clk 0:00:18]} 75. Ka2 {[%clk 0:00:06]}  b4 {[%clk 0:00:18]} 76. Rc2 {[%clk 0:00:06]}  Kb5 {[%clk 0:00:18]} 77. Rd2 {[%clk 0:00:06]}  Ka4 {[%clk 0:00:17]} 78. Rb2 {[%clk 0:00:06]}  Qd5 {[%clk 0:00:17]} 79. Kb1 {[%clk 0:00:05]}  Qxb3 {[%clk 0:00:16]} 80. Rxb3 {[%clk 0:00:06]}  Kxb3 {[%clk 0:00:17]} 81. Kc1 {[%clk 0:00:06]}  Ka2 {[%clk 0:00:17]} 82. Kc2 {[%clk 0:00:07]}  b3+ {[%clk 0:00:18]} 83. Kc3 {[%clk 0:00:07]}  b2 {[%clk 0:00:19]} 84. Kc2 {[%clk 0:00:08]}  b1=Q+ {[%clk 0:00:20]} 85. Kc3 {[%clk 0:00:08]}  Qb2+ {[%clk 0:00:20]} 86. Kc4 {[%clk 0:00:08]}  Ka3 {[%clk 0:00:21]} 87. Kc5 {[%clk 0:00:09]}  Qd2 {[%clk 0:00:21]} 0-1


[Site "https://www.chess.com"]

[Event "Titled Tuesday Blitz December 06 Early 2022"]
[White "Ghosh, Chanchal Kumer"]
[Black "Franca, Ricardo Bedin"]
[WhiteFideId "10201858"]
[BlackFideId "2107066"]
[WhiteElo "2058"]
[BlackElo "2472"]
[Result "1-0"]
[Round "05"]
[TimeControl "180+1"]
[Date "2022.12.07"]
[WhiteClock "0:00:08"]
[BlackClock "0:00:03"]

1. e4 {[%clk 0:03:00]}  e5 {[%clk 0:02:58]} 2. Nf3 {[%clk 0:03:01]}  Nc6 {[%clk 0:02:57]} 3. Bc4 {[%clk 0:03:01]}  Nf6 {[%clk 0:02:57]} 4. Ng5 {[%clk 0:03:01]}  d5 {[%clk 0:02:57]} 5. exd5 {[%clk 0:03:01]}  Na5 {[%clk 0:02:58]} 6. Bb5+ {[%clk 0:03:01]}  c6 {[%clk 0:02:58]} 7. dxc6 {[%clk 0:03:01]}  bxc6 {[%clk 0:02:59]} 8. Qf3 {[%clk 0:03:01]}  h6 {[%clk 0:02:58]} 9. Ne4 {[%clk 0:02:58]}  Nd5 {[%clk 0:02:56]} 10. Bd3 {[%clk 0:02:51]}  Be7 {[%clk 0:02:43]} 11. Ng3 {[%clk 0:02:39]}  O-O {[%clk 0:02:27]} 12. Nf5 {[%clk 0:02:32]}  Bf6 {[%clk 0:02:12]} 13. c3 {[%clk 0:02:23]}  Re8 {[%clk 0:01:52]} 14. O-O {[%clk 0:02:17]}  Nf4 {[%clk 0:01:45]} 15. Be4 {[%clk 0:02:07]}  Ne6 {[%clk 0:01:31]} 16. d3 {[%clk 0:01:46]}  Ng5 {[%clk 0:01:30]} 17. Bxg5 {[%clk 0:01:44]}  hxg5 {[%clk 0:01:30]} 18. b4 {[%clk 0:01:29]}  Nb7 {[%clk 0:01:30]} 19. Bxc6 {[%clk 0:01:29]}  Bxf5 {[%clk 0:01:28]} 20. Qxf5 {[%clk 0:01:19]}  Re7 {[%clk 0:01:27]} 21. Be4 {[%clk 0:01:15]}  Kf8 {[%clk 0:01:20]} 22. Nd2 {[%clk 0:01:03]}  Rc8 {[%clk 0:01:08]} 23. Qh7 {[%clk 0:00:48]}  g6 {[%clk 0:01:05]} 24. Nf3 {[%clk 0:00:47]}  Rxc3 {[%clk 0:00:52]} 25. Qh6+ {[%clk 0:00:40]}  Bg7 {[%clk 0:00:48]} 26. Qxg5 {[%clk 0:00:39]}  Nd6 {[%clk 0:00:47]} 27. Rfd1 {[%clk 0:00:23]}  Qb6 {[%clk 0:00:26]} 28. a3 {[%clk 0:00:19]}  Rc2 {[%clk 0:00:26]} 29. Qg3 {[%clk 0:00:18]}  Nf5 {[%clk 0:00:18]} 30. Bxf5 {[%clk 0:00:17]}  gxf5 {[%clk 0:00:19]} 31. Ng5 {[%clk 0:00:16]}  f4 {[%clk 0:00:15]} 32. Qh3 {[%clk 0:00:15]}  Qxf2+ {[%clk 0:00:14]} 33. Kh1 {[%clk 0:00:15]}  Rec7 {[%clk 0:00:11]} 34. Rf1 {[%clk 0:00:15]}  Qd2 {[%clk 0:00:07]} 35. Rad1 {[%clk 0:00:14]}  Qc3 {[%clk 0:00:06]} 36. Qf5 {[%clk 0:00:13]}  Qb3 {[%clk 0:00:05]} 37. h4 {[%clk 0:00:11]}  Qd5 {[%clk 0:00:05]} 38. Nf3 {[%clk 0:00:10]}  Qe6 {[%clk 0:00:03]} 39. Qe4 {[%clk 0:00:10]}  f6 {[%clk 0:00:02]} 40. h5 {[%clk 0:00:09]}  Kg8 {[%clk 0:00:02]} 41. Qg6 {[%clk 0:00:09]}  Qf7 {[%clk 0:00:02]} 42. Qg4 {[%clk 0:00:09]}  Kh7 {[%clk 0:00:02]} 43. Nh4 {[%clk 0:00:09]}  Bh6 {[%clk 0:00:02]} 44. Nf5 {[%clk 0:00:09]}  Bg5 {[%clk 0:00:03]} 45. d4 {[%clk 0:00:08]}  e4 {[%clk 0:00:02]} 46. d5 {[%clk 0:00:09]}  e3 {[%clk 0:00:02]} 47. Rfe1 {[%clk 0:00:08]}  Rd2 {[%clk 0:00:02]} 48. d6 {[%clk 0:00:07]}  Rxd1 {[%clk 0:00:02]} 49. Rxd1 {[%clk 0:00:08]}  Rd7 {[%clk 0:00:02]} 50. Qf3 {[%clk 0:00:07]}  Qe6 {[%clk 0:00:03]} 51. Qg4 {[%clk 0:00:07]}  e2 {[%clk 0:00:02]} 52. Re1 {[%clk 0:00:06]}  Rxd6 {[%clk 0:00:02]} 53. Rxe2 {[%clk 0:00:06]}  Rd1+ {[%clk 0:00:01]} 54. Kh2 {[%clk 0:00:07]}  Qd7 {[%clk 0:00:01]} 55. Re7+ {[%clk 0:00:07]}  Qxe7 {[%clk 0:00:01]} 56. Nxe7 {[%clk 0:00:08]}  Kh6 {[%clk 0:00:02]} 57. Qf5 {[%clk 0:00:07]}  Kxh5 {[%clk 0:00:02]} 58. Qh7+ {[%clk 0:00:07]}  Bh6 {[%clk 0:00:03]} 59. Qg6+ {[%clk 0:00:07]}  Kh4 {[%clk 0:00:03]} 60. Nf5# {[%clk 0:00:08]} 1-0


[Site "https://www.chess.com"]